[Event "Sunway Sitges Chess Festival"]
[Date "2024.12.22"]
[White "Dudognon, Thibault"]
[Black "Girel, Joseph"]
[WhiteElo "2411"]
[BlackElo "2494"]
[Round "10.8"]
[Result "1-0"]
[TimeControl "40/5400+30:1800+30"]

1. e4 {[%clk 1:30:57]} 1... c5 {[%clk 1:30:14]} 2. Nf3 {[%clk 1:31:11]} 2... Nc6
{[%clk 1:30:36]} 3. Bb5 {[%clk 1:30:57]} 3... e6 {[%clk 1:30:50]} 4. Bxc6 {[%clk
1:30:59]} 4... bxc6 {[%clk 1:31:13]} 5. b3 {[%clk 1:31:24]} 5... f6 {[%clk
1:29:11]} 6. e5 {[%clk 1:31:19]} 6... Ne7 {[%clk 1:19:39]} 7. Bb2 {[%clk
1:26:11]} 7... Ng6 {[%clk 1:19:29]} 8. d3 {[%clk 1:24:11]} 8... Be7 {[%clk
1:14:13]} 9. Nbd2 {[%clk 1:20:53]} 9... Qc7 {[%clk 1:10:03]} 10. h4 {[%clk
1:19:06]} 10... h5 {[%clk 0:54:13]} 11. Qe2 {[%clk 1:17:06]} 11... d6 {[%clk
0:53:47]} 12. exd6 {[%clk 1:14:18]} 12... Bxd6 {[%clk 0:54:15]} 13. Qe4 {[%clk
1:11:26]} 13... Ne7 {[%clk 0:52:29]} 14. Nc4 {[%clk 1:10:13]} 14... e5 {[%clk
0:52:36]} 15. Nfd2 {[%clk 1:08:44]} 15... Bf5 {[%clk 0:46:38]} 16. Qe2 {[%clk
1:06:07]} 16... Nd5 {[%clk 0:44:25]} 17. Ne4 {[%clk 1:04:44]} 17... Be7 {[%clk
0:44:41]} 18. O-O-O {[%clk 1:00:17]} 18... Nf4 {[%clk 0:40:15]} 19. Qf1 {[%clk
0:57:53]} 19... Ne6 {[%clk 0:39:04]} 20. Re1 {[%clk 0:56:13]} 20... Bg6 {[%clk
0:34:42]} 21. g3 {[%clk 0:55:06]} 21... O-O {[%clk 0:30:08]} 22. Qh3 {[%clk
0:51:06]} 22... Nd4 {[%clk 0:27:36]} 23. g4 {[%clk 0:48:48]} 23... Qd7 {[%clk
0:25:50]} 24. f3 {[%clk 0:48:07]} 24... Rad8 {[%clk 0:23:30]} 25. Qg2 {[%clk
0:46:34]} 25... Rf7 {[%clk 0:21:41]} 26. g5 {[%clk 0:45:11]} 26... Kh7 {[%clk
0:18:32]} 27. Rhg1 {[%clk 0:41:40]} 27... Rg8 {[%clk 0:18:44]} 28. Ng3 {[%clk
0:34:52]} 28... Rff8 {[%clk 0:16:41]} 29. Ne4 {[%clk 0:34:03]} 29... Qf5 {[%clk
0:15:53]} 30. Bxd4 {[%clk 0:28:29]} 30... cxd4 {[%clk 0:16:17]} 31. Kb1 {[%clk
0:27:51]} 31... Bd8 {[%clk 0:14:50]} 32. Ned6 {[%clk 0:25:17]} 32... Qd7 {[%clk
0:11:48]} 33. Qg3 {[%clk 0:23:17]} 33... Bc7 {[%clk 0:10:39]} 34. Ne4 {[%clk
0:23:36]} 34... Qd5 {[%clk 0:09:01]} 35. gxf6 {[%clk 0:22:41]} 35... gxf6 {[%clk
0:09:21]} 36. Qh3 {[%clk 0:22:59]} 36... Rg7 {[%clk 0:05:24]} 37. Rg3 {[%clk
0:21:37]} 37... Qd7 {[%clk 0:05:53]} 38. Qg2 {[%clk 0:21:05]} 38... Bd8 {[%clk
0:04:11]} 39. Rg1 {[%clk 0:17:37]} 39... Rfg8 {[%clk 0:04:34]} 40. Qf2 {[%clk
0:48:01]} 40... Qf5 {[%clk 0:31:29]} 41. Ned6 {[%clk 0:43:14]} 41... Qf4 {[%clk
0:25:53]} 42. Qg2 {[%clk 0:43:02]} 42... Be7 {[%clk 0:25:02]} 43. Kb2 {[%clk
0:36:48]} 43... c5 {[%clk 0:18:40]} 44. Nc8 {[%clk 0:33:06]} 44... Bf8 {[%clk
0:17:00]} 45. Qe2 {[%clk 0:23:50]} 45... Qxh4 {[%clk 0:11:36]} 46. N8d6 {[%clk
0:22:40]} 46... Kh8 {[%clk 0:09:31]} 47. f4 {[%clk 0:17:56]} 47... exf4 {[%clk
0:05:40]} 48. R3g2 {[%clk 0:16:47]} 48... Qh3 {[%clk 0:04:00]} 49. Rh2 {[%clk
0:13:58]} 49... f3 {[%clk 0:04:29]} 50. Qd2 {[%clk 0:13:54]} 50... Qe6 {[%clk
0:04:46]} 51. Qf4 {[%clk 0:11:34]} 51... Bxd6 {[%clk 0:04:09]} 52. Nxd6 {[%clk
0:11:59]} 52... Qe3 {[%clk 0:02:08]} 53. Rxg6 {[%clk 0:11:04]} 53... Rh7 {[%clk
0:00:42]} 54. Qxf6+ {[%clk 0:11:15]} 1-0

[Variant "Standard"]
[Site "Europe Echecs"]

[Event "Sunway Sitges Chess Festival"]
[Date "2024.12.22"]
[White "Ivanchuk, Vasyl"]
[Black "Savitha Shri B"]
[WhiteElo "2630"]
[BlackElo "2329"]
[Round "10.9"]
[Result "1-0"]
[TimeControl "40/5400+30:1800+30"]

1. e4 {[%clk 1:30:48]} 1... c5 {[%clk 1:29:01]} 2. Nf3 {[%clk 1:31:12]} 2... Nc6
{[%clk 1:29:27]} 3. d4 {[%clk 1:31:38]} 3... cxd4 {[%clk 1:29:53]} 4. Nxd4
{[%clk 1:32:04]} 4... Qb6 {[%clk 1:30:20]} 5. Nb3 {[%clk 1:32:19]} 5... e6
{[%clk 1:30:45]} 6. Nc3 {[%clk 1:32:24]} 6... Qc7 {[%clk 1:31:11]} 7. Be3 {[%clk
1:20:46]} 7... a6 {[%clk 1:31:36]} 8. Na4 {[%clk 1:20:30]} 8... b5 {[%clk
1:28:11]} 9. Nb6 {[%clk 1:20:49]} 9... Rb8 {[%clk 1:28:35]} 10. Nxc8 {[%clk
1:21:13]} 10... Rxc8 {[%clk 1:27:54]} 11. a4 {[%clk 1:20:23]} 11... Nf6 {[%clk
1:23:02]} 12. axb5 {[%clk 1:18:25]} 12... axb5 {[%clk 1:23:02]} 13. Bxb5 {[%clk
1:18:53]} 13... Nxe4 {[%clk 1:23:06]} 14. O-O {[%clk 1:18:04]} 14... Nf6 {[%clk
1:14:54]} 15. c4 {[%clk 0:43:48]} 15... Bd6 {[%clk 1:01:50]} 16. g3 {[%clk
0:44:07]} 16... O-O {[%clk 0:55:12]} 17. Qe2 {[%clk 0:44:23]} 17... Ra8 {[%clk
0:50:31]} 18. Rfd1 {[%clk 0:39:35]} 18... Be7 {[%clk 0:44:21]} 19. Nd4 {[%clk
0:37:14]} 19... Nxd4 {[%clk 0:35:16]} 20. Bxd4 {[%clk 0:37:35]} 20... d5 {[%clk
0:35:16]} 21. Rxa8 {[%clk 0:13:57]} 21... Rxa8 {[%clk 0:35:43]} 22. c5 {[%clk
0:14:20]} 22... Ne4 {[%clk 0:27:14]} 23. b4 {[%clk 0:14:42]} 23... Bf6 {[%clk
0:22:01]} 24. Bxf6 {[%clk 0:14:46]} 24... Nxf6 {[%clk 0:21:14]} 25. Qb2 {[%clk
0:14:48]} 25... Rb8 {[%clk 0:21:19]} 26. Bf1 {[%clk 0:14:12]} 26... Ne4 {[%clk
0:12:28]} 27. Rc1 {[%clk 0:13:52]} 27... Rc8 {[%clk 0:08:10]} 28. Ba6 {[%clk
0:10:34]} 28... Rb8 {[%clk 0:07:06]} 29. Bd3 {[%clk 0:09:19]} 29... Ng5 {[%clk
0:06:38]} 30. b5 {[%clk 0:09:38]} 30... d4 {[%clk 0:06:06]} 31. c6 {[%clk
0:06:41]} 31... Rb6 {[%clk 0:04:26]} 32. f4 {[%clk 0:05:44]} 32... Nh3+ {[%clk
0:03:38]} 33. Kg2 {[%clk 0:05:54]} 33... Nxf4+ {[%clk 0:03:13]} 34. gxf4 {[%clk
0:06:18]} 34... Qxf4 {[%clk 0:03:39]} 35. c7 {[%clk 0:05:45]} 35... Qg4+ {[%clk
0:02:50]} 36. Kh1 {[%clk 0:06:04]} 1-0

[Variant "Standard"]
[Site "Europe Echecs"]

[Event "Sunway Sitges Chess Festival"]
[Date "2024.12.22"]
[White "Lopez Martinez, Josep Manuel"]
[Black "Song, Edward"]
[WhiteElo "2455"]
[BlackElo "2363"]
[Round "10.10"]
[Result "1/2-1/2"]
[TimeControl "40/5400+30:1800+30"]

1. Nf3 {[%clk 1:21:11]} 1... Nf6 {[%clk 1:30:43]} 2. c4 {[%clk 1:21:23]} 2... b6
{[%clk 1:31:04]} 3. g3 {[%clk 1:18:06]} 3... c5 {[%clk 1:30:56]} 4. Bg2 {[%clk
1:18:19]} 4... Bb7 {[%clk 1:31:22]} 5. O-O {[%clk 1:18:31]} 5... g6 {[%clk
1:31:43]} 6. d3 {[%clk 1:17:00]} 6... Bg7 {[%clk 1:29:59]} 7. e4 {[%clk
1:17:22]} 7... O-O {[%clk 1:30:16]} 8. Nc3 {[%clk 1:17:40]} 8... Nc6 {[%clk
1:28:21]} 9. a3 {[%clk 1:13:42]} 9... Ne8 {[%clk 1:12:47]} 10. Rb1 {[%clk
1:07:41]} 10... Nc7 {[%clk 1:11:12]} 11. Nd5 {[%clk 1:07:59]} 11... Ne6 {[%clk
1:00:47]} 12. b4 {[%clk 1:06:59]} 12... d6 {[%clk 1:00:08]} 13. Kh1 {[%clk
0:51:57]} 13... h6 {[%clk 0:57:21]} 14. Bd2 {[%clk 0:51:29]} 14... Ncd4 {[%clk
0:50:37]} 15. Ng1 {[%clk 0:49:05]} 15... Nc7 {[%clk 0:42:04]} 16. Nc3 {[%clk
0:47:09]} 16... Rb8 {[%clk 0:35:04]} 17. Be3 {[%clk 0:44:07]} 17... e6 {[%clk
0:20:02]} 18. Qd2 {[%clk 0:40:27]} 18... Kh7 {[%clk 0:20:25]} 19. Nge2 {[%clk
0:36:34]} 19... Qd7 {[%clk 0:18:11]} 20. bxc5 {[%clk 0:30:19]} 20... dxc5 {[%clk
0:17:36]} 21. Bxd4 {[%clk 0:27:56]} 21... Bxd4 {[%clk 0:16:25]} 22. Nxd4 {[%clk
0:28:07]} 22... Qxd4 {[%clk 0:16:53]} 23. a4 {[%clk 0:27:38]} 23... Bc6 {[%clk
0:11:58]} 24. f4 {[%clk 0:23:45]} 24... Rbd8 {[%clk 0:06:37]} 25. Rbd1 {[%clk
0:23:14]} 25... f5 {[%clk 0:04:57]} 26. Rfe1 {[%clk 0:22:54]} 26... Rfe8 {[%clk
0:01:52]} 27. Nb5 {[%clk 0:20:31]} 27... Bxb5 {[%clk 0:03:42]} 28. axb5 {[%clk
0:20:54]} 28... a5 {[%clk 0:03:50]} 29. h3 {[%clk 0:09:23]} 29... Qf6 {[%clk
0:03:19]} 30. Kh2 {[%clk 0:09:20]} 30... Re7 {[%clk 0:02:30]} 31. exf5 {[%clk
0:08:29]} 31... exf5 {[%clk 0:02:48]} 32. Rxe7+ {[%clk 0:08:51]} 32... Qxe7
{[%clk 0:03:17]} 33. Re1 {[%clk 0:09:12]} 33... Qf6 {[%clk 0:03:28]} 34. Bc6
{[%clk 0:09:20]} 34... Rd6 {[%clk 0:02:08]} 35. Re5 {[%clk 0:08:37]} 35... Kg7
{[%clk 0:02:08]} 36. Bd5 {[%clk 0:07:40]} 36... Nxd5 {[%clk 0:01:11]} 37. cxd5
{[%clk 0:08:04]} 37... Qd8 {[%clk 0:00:56]} 38. Qc3 {[%clk 0:07:40]} 38... Kf7
{[%clk 0:01:15]} 39. Qc4 {[%clk 0:06:18]} 39... h5 {[%clk 0:00:36]} 40. d4
{[%clk 0:35:09]} 40... cxd4 {[%clk 0:30:39]} 41. Qxd4 {[%clk 0:35:19]} 41... Qc7
{[%clk 0:21:14]} 42. Re2 {[%clk 0:34:11]} 42... Rd8 {[%clk 0:20:26]} 43. h4
{[%clk 0:24:38]} 43... Qc5 {[%clk 0:20:16]} 44. Qe5 {[%clk 0:24:57]} 44... Qd6
{[%clk 0:20:32]} 45. Qe3 {[%clk 0:24:19]} 45... a4 {[%clk 0:11:46]} 46. Qd4
{[%clk 0:24:32]} 46... Qxd5 {[%clk 0:07:55]} 47. Qxb6 {[%clk 0:21:11]} 47... a3
{[%clk 0:06:53]} 48. Qa7+ {[%clk 0:13:59]} 48... Rd7 {[%clk 0:07:19]} 49. Qxa3
{[%clk 0:07:52]} 49... Qxb5 {[%clk 0:07:46]} 50. Qe3 {[%clk 0:08:16]} 50... Rb7
{[%clk 0:05:05]} 51. Qe6+ {[%clk 0:07:40]} 51... Kg7 {[%clk 0:05:34]} 52. Rd2
{[%clk 0:06:57]} 52... Kh7 {[%clk 0:04:48]} 53. Qf6 {[%clk 0:04:05]} 53... Qf1
{[%clk 0:04:20]} 54. Qe5 {[%clk 0:02:18]} 54... Rg7 {[%clk 0:04:19]} 1/2-1/2

[Variant "Standard"]
[Site "Europe Echecs"]

[Event "Sunway Sitges Chess Festival"]
[Date "2024.12.22"]
[White "Raczek, Krzysztof"]
[Black "kiladze, Luka"]
[WhiteElo "2443"]
[BlackElo "2359"]
[Round "10.11"]
[Result "0-1"]
[TimeControl "40/5400+30:1800+30"]

1. e4 {[%clk 1:27:45]} 1... c5 {[%clk 1:30:45]} 2. Nf3 {[%clk 1:28:00]} 2... Nc6
{[%clk 1:31:11]} 3. Bb5 {[%clk 1:28:26]} 3... g6 {[%clk 1:31:37]} 4. Bxc6 {[%clk
1:28:50]} 4... dxc6 {[%clk 1:32:04]} 5. d3 {[%clk 1:29:14]} 5... Bg7 {[%clk
1:32:29]} 6. a4 {[%clk 1:29:40]} 6... Nf6 {[%clk 1:32:54]} 7. a5 {[%clk
1:29:59]} 7... O-O {[%clk 1:32:52]} 8. Be3 {[%clk 1:28:21]} 8... b5 {[%clk
1:29:29]} 9. Bxc5 {[%clk 1:07:34]} 9... Bg4 {[%clk 1:22:46]} 10. Be3 {[%clk
1:01:25]} 10... Nd7 {[%clk 1:23:49]} 11. h3 {[%clk 0:51:28]} 11... Bxf3 {[%clk
1:23:38]} 12. Qxf3 {[%clk 0:51:49]} 12... Bxb2 {[%clk 1:23:31]} 13. Ra2 {[%clk
0:52:18]} 13... Bg7 {[%clk 1:22:39]} 14. O-O {[%clk 0:49:00]} 14... a6 {[%clk
1:22:53]} 15. Qe2 {[%clk 0:48:24]} 15... e5 {[%clk 1:22:54]} 16. c4 {[%clk
0:42:11]} 16... f5 {[%clk 1:16:10]} 17. f3 {[%clk 0:32:53]} 17... Nf6 {[%clk
1:14:31]} 18. cxb5 {[%clk 0:30:36]} 18... cxb5 {[%clk 1:13:46]} 19. Rc1 {[%clk
0:30:17]} 19... Nh5 {[%clk 1:09:11]} 20. Nc3 {[%clk 0:28:54]} 20... Rc8 {[%clk
0:45:29]} 21. Rac2 {[%clk 0:19:06]} 21... Nf4 {[%clk 0:42:24]} 22. Bxf4 {[%clk
0:19:31]} 22... exf4 {[%clk 0:42:51]} 23. Nd5 {[%clk 0:19:57]} 23... Rxc2 {[%clk
0:43:17]} 24. Qxc2 {[%clk 0:20:23]} 24... Qxa5 {[%clk 0:42:20]} 25. Kh1 {[%clk
0:13:03]} 25... fxe4 {[%clk 0:34:06]} 26. dxe4 {[%clk 0:13:32]} 26... Qa3 {[%clk
0:34:12]} 27. Rd1 {[%clk 0:07:56]} 27... Kh8 {[%clk 0:33:14]} 28. Qd2 {[%clk
0:06:59]} 28... Qb2 {[%clk 0:30:56]} 29. Qa5 {[%clk 0:04:53]} 29... Qc2 {[%clk
0:26:53]} 30. Ra1 {[%clk 0:04:26]} 30... Qb2 {[%clk 0:23:06]} 31. Rf1 {[%clk
0:03:15]} 31... b4 {[%clk 0:22:20]} 32. Qxa6 {[%clk 0:03:06]} 32... b3 {[%clk
0:22:39]} 33. Nc7 {[%clk 0:-1:-25]} 33... Qf6 {[%clk 0:17:33]} 34. Qb5 {[%clk
0:01:48]} 34... b2 {[%clk 0:17:35]} 35. Nd5 {[%clk 0:01:29]} 35... Qe5 {[%clk
0:17:46]} 36. Rb1 {[%clk 0:01:11]} 36... h5 {[%clk 0:17:32]} 37. Kh2 {[%clk
0:00:55]} 37... Rc8 {[%clk 0:16:01]} 38. Qf1 {[%clk 0:00:34]} 38... Kh7 {[%clk
0:14:43]} 39. Nb4 {[%clk 0:00:37]} 39... Qd4 {[%clk 0:14:13]} 40. Nd3 {[%clk
0:30:33]} 40... Rc2 {[%clk 0:43:40]} 41. Rd1 {[%clk 0:15:39]} 41... Qc3 {[%clk
0:39:02]} 42. e5 {[%clk 0:14:09]} 42... Bxe5 {[%clk 0:36:34]} 43. Nxe5 {[%clk
0:05:51]} 43... Qxe5 {[%clk 0:36:22]} 44. Qa6 {[%clk 0:05:57]} 44... Kh6 {[%clk
0:30:04]} 45. Qb6 {[%clk 0:01:59]} 45... Rc1 {[%clk 0:27:13]} 46. Rd5 {[%clk
0:00:58]} 46... Qe1 {[%clk 0:26:37]} 47. Rxh5+ {[%clk 0:00:51]} 47... Kxh5
{[%clk 0:27:02]} 48. Qc5+ {[%clk 0:01:13]} 48... Rxc5 {[%clk 0:27:24]} 0-1

[Variant "Standard"]
[Site "Europe Echecs"]

[Event "Sunway Sitges Chess Festival"]
[Date "2024.12.22"]
[White "Arfan, Aditya Bagus"]
[Black "Kristoferitsch, Daniel"]
[WhiteElo "2416"]
[BlackElo "2287"]
[Round "10.12"]
[Result "1/2-1/2"]
[TimeControl "40/5400+30:1800+30"]

1. Nf3 {[%clk 1:23:57]} 1... c5 {[%clk 1:30:44]} 2. e4 {[%clk 1:24:00]} 2... d6
{[%clk 1:31:06]} 3. d4 {[%clk 1:24:09]} 3... cxd4 {[%clk 1:31:29]} 4. Nxd4
{[%clk 1:24:35]} 4... Nf6 {[%clk 1:31:49]} 5. Nc3 {[%clk 1:24:59]} 5... a6
{[%clk 1:32:15]} 6. h3 {[%clk 1:25:17]} 6... e5 {[%clk 1:32:38]} 7. Nf3 {[%clk
1:16:02]} 7... h6 {[%clk 1:14:48]} 8. g4 {[%clk 1:14:35]} 8... b5 {[%clk
1:11:15]} 9. g5 {[%clk 1:05:56]} 9... hxg5 {[%clk 1:11:37]} 10. Bxg5 {[%clk
1:04:45]} 10... Nbd7 {[%clk 1:02:24]} 11. a4 {[%clk 1:02:44]} 11... b4 {[%clk
1:00:45]} 12. Nd5 {[%clk 0:56:40]} 12... Bb7 {[%clk 0:56:06]} 13. Bc4 {[%clk
0:55:47]} 13... Be7 {[%clk 0:52:41]} 14. Bxf6 {[%clk 0:51:04]} 14... Bxf6 {[%clk
0:48:47]} 15. a5 {[%clk 0:44:57]} 15... Rc8 {[%clk 0:40:24]} 16. Qe2 {[%clk
0:41:10]} 16... Rc5 {[%clk 0:42:57]} 17. Nxb4 {[%clk 0:34:33]} 17... Rxa5 {[%clk
0:42:52]} 18. Rd1 {[%clk 0:28:42]} 18... Qb6 {[%clk 0:39:42]} 19. c3 {[%clk
0:19:06]} 19... Nf8 {[%clk 0:29:52]} 20. Bd5 {[%clk 0:16:21]} 20... Ng6 {[%clk
0:27:34]} 21. Bxb7 {[%clk 0:15:22]} 21... Qxb7 {[%clk 0:31:27]} 22. Nd5 {[%clk
0:15:20]} 22... Ra2 {[%clk 0:27:15]} 23. Rd2 {[%clk 0:14:11]} 23... Ra1+ {[%clk
0:30:09]} 24. Rd1 {[%clk 0:13:08]} 24... Ra2 {[%clk 0:29:38]} 25. Rd2 {[%clk
0:05:18]} 25... a5 {[%clk 0:21:32]} 26. Qc4 {[%clk 0:07:59]} 26... Ra1+ {[%clk
0:17:28]} 27. Rd1 {[%clk 0:08:28]} 27... Rxd1+ {[%clk 0:17:50]} 28. Kxd1 {[%clk
0:08:56]} 28... O-O {[%clk 0:18:10]} 29. Kc2 {[%clk 0:08:41]} 29... Rc8 {[%clk
0:17:27]} 30. Qa4 {[%clk 0:04:52]} 30... Qa6 {[%clk 0:14:05]} 31. Re1 {[%clk
0:06:22]} 31... Nf4 {[%clk 0:14:30]} 32. Nxf4 {[%clk 0:05:38]} 32... exf4 {[%clk
0:14:59]} 33. e5 {[%clk 0:03:16]} 33... dxe5 {[%clk 0:13:14]} 34. Nxe5 {[%clk
0:00:-16]} 34... Rd8 {[%clk 0:11:19]} 35. Qc4 {[%clk 0:04:00]} 35... Qb7 {[%clk
0:09:28]} 36. Nd3 {[%clk 0:03:05]} 36... Qf3 {[%clk 0:09:11]} 37. Qe4 {[%clk
0:02:41]} 37... Qxh3 {[%clk 0:07:13]} 38. Rh1 {[%clk 0:01:54]} 38... Qd7 {[%clk
0:08:56]} 39. Qh7+ {[%clk 0:01:59]} 39... Kf8 {[%clk 0:09:25]} 40. Qh8+ {[%clk
0:31:44]} 40... Ke7 {[%clk 0:39:49]} 41. Re1+ {[%clk 0:31:05]} 41... Kd6 {[%clk
0:27:35]} 42. Qh5 {[%clk 0:21:03]} 42... g5 {[%clk 0:16:12]} 43. Qf3 {[%clk
0:11:22]} 43... Kc7 {[%clk 0:28:46]} 44. Re4 {[%clk 0:06:08]} 44... Qd5 {[%clk
0:24:35]} 45. Qe2 {[%clk 0:04:14]} 45... Rd6 {[%clk 0:18:51]} 46. f3 {[%clk
0:00:15]} 46... Re6 {[%clk 0:14:56]} 47. Rxe6 {[%clk 0:07:27]} 47... fxe6 {[%clk
0:15:13]} 48. Nf2 {[%clk 0:07:45]} 48... a4 {[%clk 0:14:53]} 49. Ne4 {[%clk
0:07:58]} 49... Be7 {[%clk 0:12:24]} 50. Qa6 {[%clk 0:05:46]} 50... Qb3+ {[%clk
0:12:28]} 51. Kc1 {[%clk 0:06:49]} 51... a3 {[%clk 0:07:40]} 52. Qa7+ {[%clk
0:03:17]} 52... Kd8 {[%clk 0:12:13]} 53. bxa3 {[%clk 0:02:59]} 53... Bxa3+
{[%clk 0:09:22]} 54. Kd2 {[%clk 0:03:27]} 54... Qb2+ {[%clk 0:07:30]} 1/2-1/2

[Variant "Standard"]
[Site "Europe Echecs"]

[Event "Sunway Sitges Chess Festival"]
[Date "2024.12.22"]
[White "Atanasov, Anthony"]
[Black "Naoum, Spyridon"]
[WhiteElo "2415"]
[BlackElo "2338"]
[Round "10.13"]
[Result "1/2-1/2"]
[TimeControl "40/5400+30:1800+30"]

1. d4 {[%clk 1:30:58]} 1... d5 {[%clk 1:28:54]} 2. Nf3 {[%clk 1:30:17]} 2... Nf6
{[%clk 1:26:52]} 3. Bf4 {[%clk 1:24:34]} 3... c5 {[%clk 1:27:10]} 4. e3 {[%clk
1:24:58]} 4... Nc6 {[%clk 1:27:36]} 5. Be2 {[%clk 1:24:48]} 5... Bg4 {[%clk
1:26:31]} 6. Nbd2 {[%clk 1:23:10]} 6... e6 {[%clk 1:26:53]} 7. O-O {[%clk
1:18:37]} 7... Be7 {[%clk 1:25:16]} 8. h3 {[%clk 1:18:49]} 8... Bh5 {[%clk
1:25:33]} 9. dxc5 {[%clk 1:12:12]} 9... Bxc5 {[%clk 1:24:12]} 10. a3 {[%clk
1:12:06]} 10... O-O {[%clk 1:23:05]} 11. c4 {[%clk 1:09:21]} 11... a6 {[%clk
1:21:35]} 12. Rc1 {[%clk 1:07:32]} 12... Bd6 {[%clk 1:09:07]} 13. cxd5 {[%clk
1:05:28]} 13... Nxd5 {[%clk 0:52:25]} 14. Bxd6 {[%clk 1:05:39]} 14... Qxd6
{[%clk 0:52:53]} 15. Qb3 {[%clk 1:00:39]} 15... Qe7 {[%clk 0:48:24]} 16. Nc4
{[%clk 0:51:09]} 16... Rfd8 {[%clk 0:30:43]} 17. Nb6 {[%clk 0:46:57]} 17... Nxb6
{[%clk 0:27:55]} 18. Qxb6 {[%clk 0:47:24]} 18... Rd6 {[%clk 0:25:28]} 19. Qc5
{[%clk 0:46:19]} 19... Bg6 {[%clk 0:25:46]} 20. Ne5 {[%clk 0:23:30]} 20... Nxe5
{[%clk 0:25:03]} 21. Qxe5 {[%clk 0:23:58]} 21... f6 {[%clk 0:22:39]} 22. Qa5
{[%clk 0:22:23]} 22... Be4 {[%clk 0:21:33]} 23. Rfd1 {[%clk 0:19:26]} 23...
Rxd1+ {[%clk 0:18:44]} 24. Rxd1 {[%clk 0:19:42]} 24... Rc8 {[%clk 0:17:49]} 25.
Qb6 {[%clk 0:15:28]} 25... Bd5 {[%clk 0:17:29]} 26. b4 {[%clk 0:14:49]} 26...
Qc7 {[%clk 0:16:11]} 27. Qd4 {[%clk 0:13:55]} 27... Qc3 {[%clk 0:12:58]} 28. Qb6
{[%clk 0:03:07]} 28... Qc7 {[%clk 0:10:03]} 29. Qd4 {[%clk 0:03:32]} 29... Qc3
{[%clk 0:10:10]} 30. Qb6 {[%clk 0:03:58]} 1/2-1/2

[Variant "Standard"]
[Site "Europe Echecs"]

[Event "Sunway Sitges Chess Festival"]
[Date "2024.12.22"]
[White "Lacasa Diaz, Josep Anton"]
[Black "Gormally, Daniel W"]
[WhiteElo "2324"]
[BlackElo "2424"]
[Round "10.14"]
[Result "1/2-1/2"]
[TimeControl "40/5400+30:1800+30"]

1. Nf3 {[%clk 1:27:03]} 1... Nf6 {[%clk 1:30:35]} 2. c4 {[%clk 1:27:27]} 2... g6
{[%clk 1:30:29]} 3. Nc3 {[%clk 1:27:34]} 3... Bg7 {[%clk 1:30:40]} 4. e4 {[%clk
1:27:46]} 4... O-O {[%clk 1:30:56]} 5. d4 {[%clk 1:28:04]} 5... d6 {[%clk
1:30:57]} 6. Be2 {[%clk 1:28:20]} 6... c5 {[%clk 1:31:20]} 7. d5 {[%clk
1:25:56]} 7... e6 {[%clk 1:31:27]} 8. O-O {[%clk 1:26:01]} 8... exd5 {[%clk
1:31:49]} 9. exd5 {[%clk 1:24:37]} 9... Bf5 {[%clk 1:28:53]} 10. Nh4 {[%clk
1:22:57]} 10... Bc8 {[%clk 1:25:20]} 11. h3 {[%clk 1:22:32]} 11... Na6 {[%clk
1:22:39]} 12. Nf3 {[%clk 1:22:04]} 12... Bf5 {[%clk 1:21:09]} 13. g4 {[%clk
1:19:54]} 13... Bc8 {[%clk 1:15:52]} 14. Bf4 {[%clk 1:12:13]} 14... Nc7 {[%clk
1:08:47]} 15. Qd2 {[%clk 1:03:13]} 15... Re8 {[%clk 1:07:43]} 16. Rfe1 {[%clk
0:57:22]} 16... b5 {[%clk 1:04:37]} 17. cxb5 {[%clk 0:56:09]} 17... h5 {[%clk
1:01:23]} 18. gxh5 {[%clk 0:47:18]} 18... Nxh5 {[%clk 0:58:38]} 19. Ng5 {[%clk
0:41:33]} 19... Nxf4 {[%clk 0:52:41]} 20. Qxf4 {[%clk 0:41:56]} 20... Qf6 {[%clk
0:51:32]} 21. Qh4 {[%clk 0:37:19]} 21... Re5 {[%clk 0:46:30]} 22. Nce4 {[%clk
0:19:00]} 22... Qe7 {[%clk 0:40:12]} 23. Bd3 {[%clk 0:14:10]} 23... c4 {[%clk
0:26:27]} 24. f4 {[%clk 0:12:01]} 24... cxd3 {[%clk 0:22:57]} 25. fxe5 {[%clk
0:12:25]} 25... Qxe5 {[%clk 0:20:02]} 26. Nh7 {[%clk 0:08:30]} 26... Qd4+ {[%clk
0:16:41]} 27. Kf1 {[%clk 0:08:56]} 27... g5 {[%clk 0:14:13]} 28. Nhxg5 {[%clk
0:07:02]} 28... Bf5 {[%clk 0:14:37]} 29. Qf2 {[%clk 0:02:36]} 29... Qxd5 {[%clk
0:13:07]} 30. Ng3 {[%clk 0:01:00]} 30... Bg6 {[%clk 0:12:19]} 31. N5e4 {[%clk
0:01:24]} 31... Qxb5 {[%clk 0:08:15]} 32. Nxd6 {[%clk 0:01:11]} 32... Qxb2
{[%clk 0:05:50]} 33. Qxb2 {[%clk 0:01:36]} 33... Bxb2 {[%clk 0:06:17]} 34. Rad1
{[%clk 0:01:57]} 34... Rd8 {[%clk 0:05:56]} 35. Ndf5 {[%clk 0:02:07]} 35... Kf8
{[%clk 0:06:15]} 36. Re3 {[%clk 0:02:05]} 36... d2 {[%clk 0:06:41]} 37. Ke2
{[%clk 0:01:33]} 37... Bc1 {[%clk 0:06:55]} 38. Rd3 {[%clk 0:01:37]} 38... Re8+
{[%clk 0:04:52]} 39. Kf2 {[%clk 0:01:48]} 39... Ne6 {[%clk 0:05:17]} 40. h4
{[%clk 0:30:53]} 40... Ng7 {[%clk 0:33:36]} 41. Rd5 {[%clk 0:27:05]} 41... Nxf5
{[%clk 0:33:38]} 42. Nxf5 {[%clk 0:27:30]} 42... Bh5 {[%clk 0:33:57]} 43. R1xd2
{[%clk 0:27:20]} 1/2-1/2

[Variant "Standard"]
[Site "Europe Echecs"]